fUST/lending_fUST_20251010
["ID","MTS","AMOUNT","RATE_DAILY","PERIOD"]
[390486271,1760062239276,-501.31133836,0.00016438,2]
[390486273,1760062239286,-500.72260914,0.00016438,2]
[390486275,1760062239296,-501.09069393,0.00016438,2]
[390486278,1760062239306,-500.0,0.00016438,2]
[390486280,1760062239316,-500.0,0.00016438,2]
[390486282,1760062239326,-500.0,0.00016438,2]
[390486284,1760062239336,-502.29050279,0.00016438,2]
[390486286,1760062239346,-502.50529081,0.00016438,2]
[390486288,1760062239356,-500.0,0.00016438,2]
[390486290,1760062239366,-501.29616519,0.00016438,2]
[390486292,1760062239375,-500.0,0.00016438,2]
[390486295,1760062239386,-533.66837122,0.00016438,2]
[390486297,1760062239395,-504.75585513,0.00016438,2]
[390486299,1760062239404,-500.0,0.00016438,2]
[390486301,1760062239414,-502.51789228,0.00016438,2]
[390486303,1760062239424,-151.0,0.00016438,2]
[390486305,1760062239434,-151.904868,0.00016438,2]
[390486308,1760062239444,-500.0,0.00016438,2]
[390486311,1760062239454,-503.90816135,0.00016438,2]
[390486314,1760062239463,-500.0,0.00016438,2]
[390486317,1760062239473,-504.17224327,0.00016438,2]
[390486319,1760062239483,-500.76029854,0.00016438,2]
[390486321,1760062239492,-180.48703908,0.00016438,2]
[390486324,1760062239502,-151.0,0.00016438,2]
[390486326,1760062239512,-151.0,0.00016438,2]
[390486328,1760062239521,-151.0,0.00016438,2]
[390486330,1760062239530,-1003.14755388,0.00016438,2]
[390486332,1760062239540,-247.39966697,0.00016438,2]
[390486334,1760062239549,-500.0,0.00016438,2]
[390486336,1760062239558,-1210.06,0.00016438,2]
[390486338,1760062239567,-504.11079251,0.00016438,2]
[390486340,1760062239576,-500.99212781,0.00016438,2]
[390486342,1760062239586,-503.0999779,0.00016438,2]
[390486344,1760062239596,-500.0,0.00016438,2]
[390486346,1760062239605,-372.81519917,0.00016438,2]
[390486348,1760062239614,-501.30962912,0.00016438,2]
[390486350,1760062239623,-500.0,0.00016438,2]
[390486353,1760062239632,-500.0,0.00016438,2]
[390486355,1760062239642,-500.80769288,0.00016438,2]
[390486356,1760062239651,-500.0,0.00016438,2]
[390486358,1760062239661,-500.0,0.00016438,2]
[390486360,1760062239670,-500.0,0.00016438,2]
[390486362,1760062239679,-500.0,0.00016438,2]
[390486364,1760062239689,-151.0,0.00016438,2]
[390486366,1760062239698,-152.003691,0.00016438,2]
[390486369,1760062239708,-501.69374582,0.00016438,2]
[390486371,1760062239718,-502.82726231,0.00016438,2]
[390486372,1760062239727,-500.0,0.00016438,2]
[390486375,1760062239739,-500.0,0.00016438,2]
[390486377,1760062239750,-153.631982,0.00016438,2]
[390486379,1760062239759,-500.0,0.00016438,2]
[390486381,1760062239769,-432.5193515,0.00016438,2]
[390486383,1760062239779,-500.0,0.00016438,2]
[390486385,1760062239788,-151.0,0.00016438,2]
[390486387,1760062239798,-151.0,0.00016438,2]
[390486389,1760062239807,-160.811258,0.00016438,2]
[390486391,1760062239816,-500.0,0.00016438,2]
[390486393,1760062239825,-500.0,0.00016438,2]
[390486395,1760062239835,-501.99759967,0.00016438,2]
[390486397,1760062239845,-500.0,0.00016438,2]
[390486399,1760062239854,-500.52230088,0.00016438,2]
[390486401,1760062239863,-502.13104879,0.00016438,2]
[390486403,1760062239872,-500.99175476,0.00016438,2]
[390486405,1760062239881,-505.2026988,0.00016438,2]
[390486407,1760062239890,-537.16480328,0.00016438,2]
[390486409,1760062239899,-500.0,0.00016438,2]
[390486411,1760062239909,-500.90624379,0.00016438,2]
[390486413,1760062239918,-500.0,0.00016438,2]
[390486415,1760062239928,-500.0,0.00016438,2]
[390486417,1760062239937,-503.34318788,0.00016438,2]
[390486419,1760062239947,-500.0,0.00016438,2]
[390486421,1760062239956,-210.972605,0.00016438,2]
[390486423,1760062239965,-210.972605,0.00016438,2]
[390486425,1760062239974,-612.56,0.00016438,2]
[390486427,1760062239984,-500.0,0.00016438,2]
[390486429,1760062239993,-210.972605,0.00016438,2]
[390486431,1760062240003,-210.972605,0.00016438,2]
[390486433,1760062240012,-210.972605,0.00016438,2]
[390486435,1760062240022,-210.972605,0.00016438,2]
[390486437,1760062240031,-210.972605,0.00016438,2]
[390486439,1760062240041,-210.972605,0.00016438,2]
[390486441,1760062240051,-500.0,0.00016438,2]
[390486443,1760062240060,-500.0,0.00016438,2]
[390486445,1760062240070,-500.0,0.00016438,2]
[390486447,1760062240079,-500.0,0.00016438,2]
[390486449,1760062240088,-500.0,0.00016438,2]
[390486451,1760062240097,-500.0,0.00016438,2]
[390486453,1760062240108,-500.0,0.00016438,2]
[390486455,1760062240119,-500.0,0.00016438,2]
[390486457,1760062240130,-500.72667766,0.00016438,2]
[390486460,1760062240141,-500.0,0.00016438,2]
[390486462,1760062240151,-413.86909316,0.00016438,2]
[390486464,1760062240160,-500.0,0.00016438,2]
[390486465,1760062240171,-502.25975422,0.00016438,2]
[390486467,1760062240180,-421.83406148,0.00016438,2]
[390486470,1760062240189,-502.0330169,0.00016438,2]
[390486471,1760062240198,-500.0,0.00016438,2]
[390486474,1760062240209,-500.0,0.00016438,2]
[390486476,1760062240219,-500.0,0.00016438,2]
[390486478,1760062240228,-500.0,0.00016438,2]
[390486480,1760062240237,-500.0,0.00016438,2]
[390486481,1760062240246,-500.0,0.00016438,2]
[390486484,1760062240256,-500.0,0.00016438,2]
[390486486,1760062240265,-500.0,0.00016438,2]
[390486487,1760062240274,-500.0,0.00016438,2]
[390486490,1760062240283,-304.73841908,0.00016438,2]
[390486492,1760062240292,-153.060656,0.00016438,2]
[390486494,1760062240301,-500.43630551,0.00016438,2]
[390486496,1760062240310,-181.860498,0.00016438,2]
[390486498,1760062240319,-500.0,0.00016438,2]
[390486500,1760062240328,-151.750759,0.00016438,2]
[390486502,1760062240337,-481.01700467,0.00016438,2]
[390486504,1760062240346,-501.84305985,0.00016438,2]
[390486506,1760062240356,-504.46235689,0.00016438,2]
[390486508,1760062240366,-503.8566298,0.00016438,2]
[390486510,1760062240375,-500.0,0.00016438,2]
[390486512,1760062240390,-501.41943121,0.00016438,2]
[390486514,1760062240399,-502.54790432,0.00016438,2]
[390486516,1760062240408,-501.65309134,0.00016438,2]
[390486518,1760062240418,-502.16497774,0.00016438,2]
[390486520,1760062240428,-500.0,0.00016438,2]
[390486522,1760062240437,-500.53645101,0.00016438,2]
[390486524,1760062240447,-502.06924811,0.00016438,2]
[390486526,1760062240456,-500.89359788,0.00016438,2]
[390486528,1760062240465,-502.11849293,0.00016438,2]
[390486530,1760062240475,-500.0,0.00016438,2]
[390486532,1760062240484,-500.0,0.00016438,2]
[390486534,1760062240493,-500.0,0.00016438,2]
[390486536,1760062240503,-501.38752921,0.00016438,2]
[390486538,1760062240512,-500.0,0.00016438,2]
[390486561,1760062240714,-500.0,0.00016438,2]
[390486563,1760062240723,-502.77583653,0.00016438,2]
[390486565,1760062240733,-500.0,0.00016438,2]
[390486567,1760062240742,-500.0,0.00016438,2]
[390486569,1760062240751,-269.3180671,0.00016438,2]
[390486571,1760062240761,-501.23739647,0.00016438,2]
[390486573,1760062240770,-501.68338757,0.00016438,2]
[390486575,1760062240779,-503.41532337,0.00016438,2]
[390486577,1760062240789,-500.37834516,0.00016438,2]
[390486579,1760062240798,-500.0,0.00016438,2]
[390486581,1760062240807,-501.10732289,0.00016438,2]
[390486583,1760062240820,-500.0,0.00016438,2]
[390486586,1760062240829,-501.3236961,0.00016438,2]
[390486588,1760062240840,-189.113488,0.00016438,2]
[390486590,1760062240849,-501.78675145,0.00016438,2]
[390486592,1760062240859,-340.0008303,0.00016438,2]
[390486594,1760062240868,-500.0,0.00016438,2]
[390486596,1760062240878,-369.60936673,0.00016438,2]
[390486598,1760062240888,-500.82531903,0.00016438,2]
[390486600,1760062240897,-500.0,0.00016438,2]
[390486602,1760062240907,-502.67956625,0.00016438,2]
[390486604,1760062240916,-422.07411172,0.00016438,2]
[390486606,1760062240925,-502.52250354,0.00016438,2]
[390486608,1760062240934,-500.0,0.00016438,2]
[390486610,1760062240944,-500.0,0.00016438,2]
[390486612,1760062240953,-500.0,0.00016438,2]
[390486613,1760062240962,-501.39088506,0.00016438,2]
[390486615,1760062240971,-500.0,0.00016438,2]
[390486617,1760062240980,-501.3140315,0.00016438,2]
[390486619,1760062240991,-500.0,0.00016438,2]
[390486622,1760062241000,-500.87475987,0.00016438,2]
[390486624,1760062241009,-501.6147945,0.00016438,2]
[390486626,1760062241019,-500.0,0.00016438,2]
[390486628,1760062241028,-500.56236055,0.00016438,2]
[390486629,1760062241037,-752.35,0.00016438,2]
[390486631,1760062241046,-500.0,0.00016438,2]
[390486633,1760062241055,-500.0,0.00016438,2]
[390486636,1760062241065,-500.0,0.00016438,2]
[390486638,1760062241075,-500.63790663,0.00016438,2]
[390486640,1760062241085,-502.63951751,0.00016438,2]
[390486642,1760062241094,-501.49770499,0.00016438,2]
[390486644,1760062241103,-152.031456,0.00016438,2]
[390486645,1760062241111,-500.0,0.00016438,2]
[390486648,1760062241121,-500.0,0.00016438,2]
[390486649,1760062241138,-501.08569497,0.00016438,2]
[390486651,1760062241147,-500.0,0.00016438,2]
[390486653,1760062241160,-500.0,0.00016438,2]
[390486655,1760062241171,-500.0,0.00016438,2]
[390486657,1760062241180,-3418.43,0.00016438,2]
[390486659,1760062241189,-500.0,0.00016438,2]
[390486661,1760062241198,-151.0,0.00016438,2]
[390486664,1760062241208,-500.0,0.00016438,2]
[390486666,1760062241217,-151.0,0.00016438,2]
[390486668,1760062241225,-165.855121,0.00016438,2]
[390486670,1760062241235,-500.0,0.00016438,2]
[390486672,1760062241244,-502.07846543,0.00016438,2]
[390486674,1760062241253,-500.0,0.00016438,2]
[390486675,1760062241262,-500.0,0.00016438,2]
[390486677,1760062241271,-500.0,0.00016438,2]
[390486680,1760062241280,-151.0,0.00016438,2]
[390486681,1760062241289,-151.0,0.00016438,2]
[390486684,1760062241298,-502.41335116,0.00016438,2]
[390486686,1760062241307,-500.0,0.00016438,2]
[390486688,1760062241316,-500.0,0.00016438,2]
[390486689,1760062241325,-500.0,0.00016438,2]
[390486692,1760062241335,-500.0,0.00016438,2]
[390486693,1760062241344,-151.638751,0.00016438,2]
[390486695,1760062241352,-500.0,0.00016438,2]
[390486697,1760062241361,-500.0,0.00016438,2]
[390486699,1760062241370,-500.0,0.00016438,2]
[390486701,1760062241379,-500.0,0.00016438,2]
[390486703,1760062241388,-500.0,0.00016438,2]
[390486705,1760062241397,-500.0,0.00016438,2]
[390486707,1760062241406,-500.0,0.00016438,2]
[390486709,1760062241415,-500.0,0.00016438,2]
[390486711,1760062241424,-500.0,0.00016438,2]
[390486713,1760062241432,-1127.86,0.00016438,2]
[390486715,1760062241442,-500.0,0.00016438,2]
[390486718,1760062241451,-500.0,0.00016438,2]
[390486719,1760062241460,-501.12466354,0.00016438,2]
[390486721,1760062241469,-501.2065231,0.00016438,2]
[390486723,1760062241478,-500.86748288,0.00016438,2]
[390486725,1760062241487,-503.79213264,0.00016438,2]
[390486727,1760062241497,-500.0,0.00016438,2]
[390486729,1760062241506,-500.88106567,0.00016438,2]
[390486731,1760062241514,-500.0,0.00016438,2]
[390486733,1760062241523,-500.0,0.00016438,2]
[390486735,1760062241532,-500.0,0.00016438,2]
[390486737,1760062241541,-500.33800412,0.00016438,2]
[390486739,1760062241550,-501.73212734,0.00016438,2]
[390486741,1760062241559,-501.89258517,0.00016438,2]
[390486743,1760062241568,-500.0,0.00016438,2]
[390486745,1760062241577,-500.0,0.00016438,2]
[390486747,1760062241586,-500.0,0.00016438,2]
[390486749,1760062241596,-500.0,0.00016438,2]
[390486751,1760062241605,-500.0,0.00016438,2]
[390486754,1760062241614,-500.0,0.00016438,2]
[390486756,1760062241623,-500.0,0.00016438,2]
[390486757,1760062241632,-151.0,0.00016438,2]
[390486759,1760062241642,-151.0,0.00016438,2]
[390486761,1760062241651,-500.0,0.00016438,2]
[390486763,1760062241660,-500.0,0.00016438,2]
[390486765,1760062241670,-500.0,0.00016438,2]
[390486767,1760062241679,-1000.0,0.00016438,2]
[390486770,1760062241688,-500.0,0.00016438,2]
[390486772,1760062241698,-500.0,0.00016438,2]
[390486774,1760062241707,-500.0,0.00016438,2]
[390486775,1760062241716,-500.0,0.00016438,2]
[390486777,1760062241725,-500.0,0.00016438,2]
[390486780,1760062241735,-500.0,0.00016438,2]
[390486781,1760062241744,-500.0,0.00016438,2]
[390486784,1760062241754,-567.68992436,0.00016438,2]
[390486786,1760062241763,-151.0,0.00016438,2]
[390486788,1760062241773,-359.37702675,0.00016438,2]
[390486790,1760062241782,-500.0,0.00016438,2]
[390486792,1760062241791,-501.11226324,0.00016438,2]
[390486794,1760062241800,-502.33088566,0.00016438,2]
[390486796,1760062241809,-503.19599363,0.00016438,2]
[390486798,1760062241819,-502.054766,0.00016438,2]
[390486800,1760062241829,-151.0,0.00016438,2]
[390486802,1760062241838,-501.1244368,0.00016438,2]
[390486804,1760062241847,-151.0,0.00016438,2]
[390486806,1760062241857,-151.0,0.00016438,2]
[390486808,1760062241866,-189.96658066,0.00016438,2]
[390486810,1760062241876,-500.0,0.00016438,2]
[390486812,1760062241885,-500.0,0.00016438,2]
[390486814,1760062241894,-151.0,0.00016438,2]
[390486816,1760062241903,-500.0,0.00016438,2]
[390486818,1760062241912,-500.0,0.00016438,2]
[390486820,1760062241921,-500.0,0.00016438,2]
[390486822,1760062241930,-500.0,0.00016438,2]
[390486824,1760062241939,-500.18334127,0.00016438,2]
[390486826,1760062241948,-500.0,0.00016438,2]
[390486828,1760062241957,-500.0,0.00016438,2]
[390486829,1760062241967,-1763.47,0.00016438,2]
[390486832,1760062241976,-500.0,0.00016438,2]
[390486834,1760062241986,-501.35072791,0.00016438,2]
[390486836,1760062241996,-172.68877268,0.00016438,2]
[390486838,1760062242004,-151.0,0.00016438,2]
[390486840,1760062242013,-500.0,0.00016438,2]
[390486842,1760062242023,-151.555572,0.00016438,2]
[390486844,1760062242035,-502.45846065,0.00016438,2]
[390486846,1760062242044,-200.918505,0.00016438,2]
[390486848,1760062242053,-200.918505,0.00016438,2]
[390486850,1760062242062,-200.918505,0.00016438,2]
[390486852,1760062242072,-1054.65,0.00016438,2]
[390486854,1760062242081,-500.0,0.00016438,2]
[390486856,1760062242090,-200.918505,0.00016438,2]
[390486858,1760062242098,-200.918505,0.00016438,2]
[390486860,1760062242108,-200.918505,0.00016438,2]
[390486862,1760062242117,-200.918505,0.00016438,2]
[390486864,1760062242127,-500.0,0.00016438,2]
[390486866,1760062242138,-200.918505,0.00016438,2]
[390486868,1760062242147,-200.918505,0.00016438,2]
[390486870,1760062242159,-200.918505,0.00016438,2]
[390486872,1760062242171,-500.0,0.00016438,2]
[390486874,1760062242184,-200.918505,0.00016438,2]
[390486876,1760062242199,-200.918505,0.00016438,2]
[390486878,1760062242211,-151.0,0.00016438,2]
[390486880,1760062242220,-500.0,0.00016438,2]
[390486882,1760062242229,-153.866277,0.00016438,2]
[390486884,1760062242239,-500.0,0.00016438,2]
[390486885,1760062242248,-500.0,0.00016438,2]
[390486887,1760062242257,-500.0,0.00016438,2]
[390486889,1760062242266,-1569.08,0.00016438,2]
[390486892,1760062242275,-524.20665313,0.00016438,2]
[390486893,1760062242285,-500.0,0.00016438,2]
[390486895,1760062242294,-398.80233492,0.00016438,2]
[390486897,1760062242303,-500.28715916,0.00016438,2]
[390486899,1760062242312,-500.0,0.00016438,2]
[390486901,1760062242321,-500.0,0.00016438,2]
[390486903,1760062242330,-500.0,0.00016438,2]
[390486905,1760062242338,-503.95354061,0.00016438,2]
[390486907,1760062242347,-505.23165234,0.00016438,2]
[390486910,1760062242356,-505.13867582,0.00016438,2]
[390486913,1760062242365,-502.86859448,0.00016438,2]
[390486916,1760062242374,-5017.48,0.00016438,2]
[390486918,1760062242384,-2494.24,0.00016438,2]
[390486919,1760062242393,-500.0,0.00016438,2]
[390486921,1760062242402,-500.0,0.00016438,2]
[390486923,1760062242411,-500.0,0.00016438,2]
[390486925,1760062242420,-607.14,0.00016438,2]
[390486927,1760062242429,-856.77,0.00016438,2]
[390486929,1760062242438,-500.0,0.00016438,2]
[390486931,1760062242447,-500.0,0.00016438,2]
[390486933,1760062242455,-2861.75,0.00016438,2]
[390486935,1760062242464,-507.21887986,0.00016438,2]
[390486937,1760062242473,-500.0,0.00016438,2]
[390486939,1760062242482,-500.0,0.00016438,2]
[390486941,1760062242492,-500.0,0.00016438,2]
[390486943,1760062242501,-500.0,0.00016438,2]
[390486945,1760062242510,-500.0,0.00016438,2]
[390486947,1760062242519,-500.0,0.00016438,2]
[390486949,1760062242528,-500.54182772,0.00016438,2]
[390486951,1760062242536,-500.0,0.00016438,2]
[390486953,1760062242545,-500.0,0.00016438,2]
[390486955,1760062242554,-151.859235,0.00016438,2]
[390486957,1760062242563,-500.0,0.00016438,2]
[390486959,1760062242572,-500.0,0.00016438,2]
[390486961,1760062242581,-836.52,0.00016438,2]
[390486963,1760062242591,-4122.15,0.00016438,2]
[390486965,1760062242600,-500.0,0.00016438,2]
[390486967,1760062242610,-500.0,0.00016438,2]
[390486969,1760062242619,-488.93264309,0.00016438,2]
[390486971,1760062242628,-151.0,0.00016438,2]
[390486973,1760062242637,-151.0,0.00016438,2]
[390486975,1760062242646,-500.0,0.00016438,2]
[390486977,1760062242655,-151.0,0.00016438,2]
[390486979,1760062242664,-600.72,0.00016438,2]
[390486981,1760062242673,-500.0,0.00016438,2]
[390486983,1760062242682,-500.0,0.00016438,2]
[390486985,1760062242692,-151.0,0.00016438,2]
[390486987,1760062242701,-500.0,0.00016438,2]
[390486989,1760062242710,-288.782122,0.00016438,2]
[390486991,1760062242719,-500.0,0.00016438,2]
[390486993,1760062242728,-500.0,0.00016438,2]
[390486995,1760062242737,-152.994985,0.00016438,2]
[390486997,1760062242747,-151.418394,0.00016438,2]
[390486999,1760062242756,-500.0,0.00016438,2]
[390487000,1760062242765,-500.0,0.00016438,2]
[390487001,1760062242774,-500.0,0.00016438,2]
[390487002,1760062242783,-500.4682584,0.00016438,2]
[390487003,1760062242793,-1629.25,0.00016438,2]
[390487004,1760062242801,-574.29,0.00016438,2]
[390487005,1760062242811,-500.0,0.00016438,2]
[390487006,1760062242820,-516.47,0.00016438,2]
[390487007,1760062242829,-582.83,0.00016438,2]
[390487008,1760062242837,-500.0,0.00016438,2]
[390487009,1760062242846,-500.0,0.00016438,2]
[390487010,1760062242855,-500.0,0.00016438,2]
[390487011,1760062242868,-500.0,0.00016438,2]
[390487012,1760062242878,-495.21487698,0.00016438,2]
[390487013,1760062242887,-500.0,0.00016438,2]
[390487014,1760062242896,-500.0,0.00016438,2]
[390487015,1760062242905,-527.83,0.00016438,2]
[390487016,1760062242914,-500.0,0.00016438,2]
[390487017,1760062242923,-531.14,0.00016438,2]
[390487018,1760062242932,-594.27,0.00016438,2]
[390487019,1760062242941,-500.0,0.00016438,2]
[390487020,1760062242949,-500.0,0.00016438,2]
[390487021,1760062242958,-500.73956541,0.00016438,2]
[390487022,1760062242967,-500.0,0.00016438,2]
[390487023,1760062242976,-500.47533536,0.00016438,2]
[390487025,1760062242985,-500.0,0.00016438,2]
[390487027,1760062242996,-151.0,0.00016438,2]
[390487029,1760062243006,-501.90278055,0.00016438,2]
[390487031,1760062243015,-151.0,0.00016438,2]
[390487033,1760062243024,-500.0,0.00016438,2]
[390487035,1760062243033,-151.0,0.00016438,2]
[390487037,1760062243042,-500.0,0.00016438,2]
[390487039,1760062243051,-151.0,0.00016438,2]
[390487041,1760062243060,-500.0,0.00016438,2]
[390487043,1760062243069,-151.0,0.00016438,2]
[390487045,1760062243078,-480.76564044,0.00016438,2]
[390487047,1760062243087,-500.0,0.00016438,2]
[390487049,1760062243097,-151.0,0.00016438,2]
[390487051,1760062243107,-501.60101146,0.00016438,2]
[390487053,1760062243115,-500.0,0.00016438,2]
[390487055,1760062243125,-151.0,0.00016438,2]
[390487057,1760062243137,-500.0,0.00016438,2]
[390487059,1760062243148,-151.0,0.00016438,2]
[390487061,1760062243157,-500.62038344,0.00016438,2]
[390487063,1760062243165,-500.0,0.00016438,2]
[390487065,1760062243176,-151.0,0.00016438,2]
[390487067,1760062243185,-500.0,0.00016438,2]
[390487069,1760062243194,-1001.96,0.00016438,2]
[390487071,1760062243205,-500.0,0.00016438,2]
[390487073,1760062243214,-500.0,0.00016438,2]
[390487075,1760062243224,-500.0,0.00016438,2]
[390487077,1760062243233,-500.0,0.00016438,2]
[390487079,1760062243243,-500.0,0.00016438,2]
[390487081,1760062243252,-502.36347265,0.00016438,2]
[390487083,1760062243261,-500.0,0.00016438,2]
[390487085,1760062243271,-500.0,0.00016438,2]
[390487087,1760062243280,-500.0,0.00016438,2]
[390487089,1760062243289,-1252.45,0.00016438,2]
[390487091,1760062243303,-500.3844994,0.00016438,2]
[390487093,1760062243319,-500.0,0.00016438,2]
[390487095,1760062243328,-585.01,0.00016438,2]
[390487097,1760062243337,-500.0,0.00016438,2]
[390487099,1760062243346,-500.0,0.00016438,2]
[390487101,1760062243355,-875.11,0.00016438,2]
[390487103,1760062243365,-500.0,0.00016438,2]
[390487105,1760062243374,-503.01189571,0.00016438,2]
[390487107,1760062243383,-500.0,0.00016438,2]
[390487109,1760062243392,-2256.89,0.00016438,2]
[390487111,1760062243402,-500.0,0.00016438,2]
[390487113,1760062243412,-500.0,0.00016438,2]
[390487115,1760062243421,-500.0,0.00016438,2]
[390487117,1760062243430,-500.0,0.00016438,2]
[390487119,1760062243439,-500.0,0.00016438,2]
[390487121,1760062243448,-500.0,0.00016438,2]
[390487123,1760062243457,-500.0,0.00016438,2]
[390487125,1760062243466,-500.0,0.00016438,2]
[390487127,1760062243475,-4501.37,0.00016438,2]
[390487129,1760062243484,-500.0,0.00016438,2]
[390487131,1760062243494,-151.0,0.00016438,2]
[390487133,1760062243504,-159.655593,0.00016438,2]
[390487135,1760062243513,-500.0,0.00016438,2]
[390487137,1760062243522,-500.0,0.00016438,2]
[390487139,1760062243531,-500.0,0.00016438,2]
[390487141,1760062243540,-500.0,0.00016438,2]
[390487143,1760062243549,-152.097801,0.00016438,2]
[390487145,1760062243558,-500.0,0.00016438,2]
[390487147,1760062243567,-500.0,0.00016438,2]
[390487149,1760062243576,-500.0,0.00016438,2]
[390487151,1760062243586,-629.86848324,0.00016438,2]
[390487152,1760062243595,-500.0,0.00016438,2]
[390487155,1760062243605,-153.139071,0.00016438,2]
[390487156,1760062243614,-500.0,0.00016438,2]
[390487158,1760062243625,-500.0,0.00016438,2]
[390487160,1760062243634,-500.0,0.00016438,2]
[390487162,1760062243643,-500.0,0.00016438,2]
[390487164,1760062243652,-500.0,0.00016438,2]
[390487166,1760062243661,-500.0,0.00016438,2]
[390487168,1760062243670,-151.0,0.00016438,2]
[390487170,1760062243679,-158.605407,0.00016438,2]
[390487172,1760062243688,-740.47,0.00016438,2]
[390487175,1760062243698,-3315.68,0.00016438,2]
[390487176,1760062243708,-500.0,0.00016438,2]
[390487178,1760062243717,-500.0,0.00016438,2]
[390487181,1760062243727,-151.321248,0.00016438,2]
[390487183,1760062243736,-500.0,0.00016438,2]
[390487185,1760062243746,-152.80269733,0.00016438,2]
[390487187,1760062243755,-157.46584776,0.00016438,2]
[390487189,1760062243765,-268.268824,0.00016438,2]
[390487191,1760062243775,-293.234204,0.00016438,2]
[390487193,1760062243784,-500.0,0.00016438,2]
[390487195,1760062243793,-151.0,0.00016438,2]
[390487196,1760062243801,-198.13486,0.00016438,2]
[390487198,1760062243811,-500.0,0.00016438,2]
[390487200,1760062243820,-500.0,0.00016438,2]
[390487202,1760062243830,-500.0,0.00016438,2]
[390487204,1760062243839,-500.0,0.00016438,2]
[390487206,1760062243848,-500.0,0.00016438,2]
[390487208,1760062243857,-500.0,0.00016438,2]
[390487210,1760062243866,-269.98538703,0.00016438,2]
[390487213,1760062243876,-500.0,0.00016438,2]
[390487214,1760062243886,-500.0,0.00016438,2]
[390487217,1760062243895,-500.0,0.00016438,2]
[390487218,1760062243904,-8815.26,0.00016438,2]
[390487220,1760062243913,-8815.26,0.00016438,2]
[390487222,1760062243922,-8815.26,0.00016438,2]
[390487224,1760062243932,-8815.26,0.00016438,2]
[390487226,1760062243941,-8815.26,0.00016438,2]
[390487228,1760062243950,-500.0,0.00016438,2]
[390487230,1760062243959,-8815.26,0.00016438,2]
[390487232,1760062243968,-8815.26,0.00016438,2]
[390487234,1760062243977,-8815.26,0.00016438,2]
[390487236,1760062243986,-8815.26,0.00016438,2]
[390487238,1760062243995,-8815.26,0.00016438,2]
[390487240,1760062244004,-8815.26,0.00016438,2]
[390487242,1760062244014,-1305.48,0.00016438,2]
[390487245,1760062244023,-8815.26,0.00016438,2]
[390487246,1760062244032,-500.0,0.00016438,2]
[390487248,1760062244041,-8815.26,0.00016438,2]
[390487250,1760062244051,-8815.26,0.00016438,2]
[390487252,1760062244060,-8815.26,0.00016438,2]
[390487254,1760062244068,-500.0,0.00016438,2]
[390487256,1760062244077,-8815.26,0.00016438,2]
[390487275,1760062244247,-8815.26,0.00016438,2]
[390487277,1760062244257,-500.0,0.00016438,2]
[390487279,1760062244266,-8815.26,0.00016438,2]
[390487281,1760062244275,-500.4640918,0.00016438,2]
[390487283,1760062244284,-8815.26,0.00016438,2]
[390487285,1760062244293,-8815.26,0.00016438,2]
[390487287,1760062244302,-8815.26,0.00016438,2]
[390487289,1760062244311,-8815.26,0.00016438,2]
[390487291,1760062244320,-500.0,0.00016438,2]
[390487293,1760062244329,-688.76,0.00016438,2]